[Event "Deloitte NK 2021"]
[Site "Hoogeveen, Netherlands"]
[Date "2021.10.18"]
[Round "4.6"]
[White "Warmerdam, Max"]
[Black "Beerdsen, Thomas"]
[Result "1-0"]
[TimeControl "90min/40moves + 30min + 30sec/move"]
[WhiteElo "2562"]
[BlackElo "2454"]

1. d4 {[%clk 01:30:57]} {[%emt 00:00:02]} d5 {[%clk 01:30:51]} {[%emt
00:00:09]} 2. c4 {[%clk 01:31:23]} {[%emt 00:00:05]} dxc4 {[%clk 01:31:16]}
{[%emt 00:00:05]} 3. Nf3 {[%clk 01:30:49]} {[%emt 00:01:04]} Nf6 {[%clk
01:31:31]} {[%emt 00:00:15]} 4. e3 {[%clk 01:31:13]} {[%emt 00:00:05]} a6
{[%clk 01:31:39]} {[%emt 00:00:22]} 5. Bxc4 {[%clk 01:30:52]} {[%emt 00:00:52]}
e6 {[%clk 01:31:51]} {[%emt 00:00:18]} 6. O-O {[%clk 01:31:16]} {[%emt
00:00:06]} b5 {[%clk 01:32:11]} {[%emt 00:00:09]} 7. Be2 {[%clk 01:30:56]}
{[%emt 00:00:51]} Bb7 {[%clk 01:32:12]} {[%emt 00:00:28]} 8. a4 {[%clk
01:25:53]} {[%emt 00:05:33]} b4 {[%clk 01:32:10]} {[%emt 00:00:32]} 9. b3
{[%clk 01:24:53]} {[%emt 00:01:30]} Nbd7 {[%clk 01:30:29]} {[%emt 00:02:10]} 10.
Bb2 {[%clk 01:23:31]} {[%emt 00:01:53]} Be7 {[%clk 01:26:46]} {[%emt 00:04:13]}
11. Nbd2 {[%clk 01:23:51]} {[%emt 00:00:11]} c5 {[%clk 01:26:40]} {[%emt
00:00:36]} 12. Nc4 {[%clk 01:21:03]} {[%emt 00:03:17]} O-O {[%clk 01:24:11]}
{[%emt 00:02:59]} 13. Nfe5 {[%clk 01:17:37]} {[%emt 00:03:57]} cxd4 {[%clk
01:13:04]} {[%emt 00:11:37]} 14. Bxd4 {[%clk 01:16:49]} {[%emt 00:01:17]} Nxe5
{[%clk 01:07:15]} {[%emt 00:06:19]} 15. Bxe5 {[%clk 01:12:11]} {[%emt
00:05:09]} Nd7 {[%clk 00:58:24]} {[%emt 00:09:21]} 16. Bf3 {[%clk 01:07:12]}
{[%emt 00:05:29]} Bd5 {[%clk 00:39:19]} {[%emt 00:19:35]} 17. Bxd5 {[%clk
00:56:35]} {[%emt 00:11:07]} exd5 {[%clk 00:39:43]} {[%emt 00:00:06]} 18. Qxd5
{[%clk 00:57:02]} {[%emt 00:00:04]} Nxe5 {[%clk 00:39:25]} {[%emt 00:00:47]} 19.
Qxd8 {[%clk 00:57:25]} {[%emt 00:00:07]} Rfxd8 {[%clk 00:33:57]} 20. Nxe5
{[%clk 00:57:44]} {[%emt 00:06:09]} Bf6 {[%clk 00:34:19]} {[%emt 00:00:08]} 21.
Nc6 {[%clk 00:56:47]} {[%emt 00:01:28]} Bxa1 {[%clk 00:28:50]} {[%emt
00:05:59]} 22. Nxd8 {[%clk 00:55:49]} {[%emt 00:01:27]} Rxd8 {[%clk 00:28:04]}
{[%emt 00:01:15]} 23. Rxa1 {[%clk 00:56:13]} {[%emt 00:00:07]} Rd3 {[%clk
00:26:47]} {[%emt 00:01:47]} 24. Rb1 {[%clk 00:55:11]} {[%emt 00:01:32]} f5
{[%clk 00:20:36]} {[%emt 00:06:40]} 25. h3 {[%clk 00:44:16]} {[%emt 00:11:25]}
Kf7 {[%clk 00:18:49]} {[%emt 00:02:17]} 26. Kf1 {[%clk 00:35:02]} {[%emt
00:09:45]} Ke6 {[%clk 00:17:58]} {[%emt 00:01:21]} 27. Ke2 {[%clk 00:35:23]}
{[%emt 00:00:09]} Rc3 {[%clk 00:18:22]} {[%emt 00:00:05]} 28. g4 {[%clk
00:35:08]} {[%emt 00:00:46]} f4 {[%clk 00:11:32]} {[%emt 00:07:19]} 29. exf4
{[%clk 00:33:18]} {[%emt 00:02:22]} Rxh3 {[%clk 00:10:37]} {[%emt 00:01:24]} 30.
f3 {[%clk 00:33:43]} {[%emt 00:00:05]} h5 {[%emt 00:05:48]} 31. gxh5 {[%clk
00:29:20]} Rxh5 {[%clk 00:08:19]} {[%emt 00:02:23]} 32. Rg1 {[%clk 00:27:22]}
{[%emt 00:02:28]} Rc5 {[%clk 00:03:38]} {[%emt 00:05:11]} 33. Rg6+ {[%clk
00:27:17]} {[%emt 00:00:35]} Kf7 {[%clk 00:03:42]} {[%emt 00:00:27]} 34. Rxa6
{[%clk 00:12:45]} {[%emt 00:15:02]} Rc3 {[%clk 00:01:14]} {[%emt 00:02:57]} 35.
Rb6 {[%clk 00:11:41]} {[%emt 00:01:34]} Rxb3 {[%clk 00:01:38]} {[%emt
00:00:05]} 36. f5 {[%clk 00:12:09]} {[%emt 00:00:03]} Ra3 {[%clk 00:01:07]}
{[%emt 00:01:01]} 37. Rxb4 {[%clk 00:11:36]} {[%emt 00:01:03]} Kf6 {[%clk
00:01:30]} {[%emt 00:00:07]} 38. Kf2 {[%clk 00:05:35]} {[%emt 00:06:32]} Kxf5
{[%clk 00:01:46]} {[%emt 00:00:14]} 39. Kg3 {[%clk 00:06:01]} {[%emt 00:00:03]}
g5 {[%clk 00:01:13]} {[%emt 00:01:03]} 40. Rb5+ {[%clk 00:06:28]} {[%emt
00:00:04]} Kg6 {[%clk 00:01:00]} {[%emt 00:00:43]} 41. Ra5 {[%clk 00:06:54]}
{[%emt 00:00:04]} Ra2 {[%clk 00:18:48]} {[%emt 00:12:42]} 42. Ra8 {[%clk
00:35:11]} {[%emt 00:02:13]} Kf6 {[%clk 00:17:51]} {[%emt 00:01:25]} 43. a5
{[%clk 00:27:47]} {[%emt 00:07:56]} Kg6 {[%clk 00:16:54]} {[%emt 00:01:26]} 44.
a6 {[%clk 00:28:12]} {[%emt 00:00:05]} Kf6 {[%clk 00:16:12]} {[%emt 00:01:12]}
45. f4 {[%clk 00:26:14]} {[%emt 00:02:28]} Ra4 {[%clk 00:01:14]} {[%emt
00:15:28]} 46. fxg5+ {[%clk 00:25:39]} {[%emt 00:01:06]} Kg6 {[%clk 00:01:02]}
{[%emt 00:00:42]} 47. Kf3 {[%clk 00:25:54]} {[%emt 00:00:15]} Kg7 {[%clk
00:00:38]} {[%emt 00:00:53]} 48. Ke3 {[%clk 00:26:20]} {[%emt 00:00:05]} Rc4
{[%clk 00:00:47]} {[%emt 00:00:20]} 49. Rb8 {[%clk 00:26:38]} {[%emt 00:00:13]}
Ra4 {[%emt 00:00:14]} 50. Rb6 {[%clk 00:27:03]} Ra5 {[%clk 00:00:52]} {[%emt
00:00:46]} 51. g6 {[%clk 00:27:21]} {[%emt 00:00:11]} Rd5 {[%clk 00:01:01]}
{[%emt 00:00:21]} 52. Ke4 {[%clk 00:27:37]} {[%emt 00:00:15]} Rd1 {[%clk
00:01:25]} {[%emt 00:00:06]} 53. Ke5 {[%clk 00:27:57]} {[%emt 00:00:10]} Rd2
{[%clk 00:01:46]} {[%emt 00:00:09]} 54. Rd6 {[%clk 00:28:16]} {[%emt 00:00:11]}
1-0

[Event "Deloitte NK 2021"]
[Site "Hoogeveen, Netherlands"]
[Date "2021.10.18"]
[Round "4.7"]
[White "Vrolijk, Liam"]
[Black "Pruijssers, Roeland"]
[Result "1/2-1/2"]
[TimeControl "90min/40moves + 30min + 30sec/move"]
[WhiteElo "2480"]
[BlackElo "2561"]

1. c4 {[%clk 01:30:56]} {[%emt 00:00:03]} Nf6 {[%clk 01:30:38]} {[%emt
00:00:22]} 2. Nc3 {[%clk 01:31:13]} {[%emt 00:00:14]} d5 {[%clk 01:28:32]}
{[%emt 00:02:36]} 3. cxd5 {[%clk 01:29:47]} {[%emt 00:01:56]} Nxd5 {[%clk
01:27:46]} {[%emt 00:01:15]} 4. Nf3 {[%clk 01:25:15]} {[%emt 00:05:02]} g6
{[%clk 01:27:23]} {[%emt 00:00:53]} 5. h4 {[%clk 01:18:26]} {[%emt 00:07:19]}
Nxc3 {[%clk 01:26:19]} {[%emt 00:01:34]} 6. bxc3 {[%clk 01:17:12]} {[%emt
00:01:44]} Bg7 {[%clk 01:26:15]} {[%emt 00:00:34]} 7. h5 {[%clk 01:14:00]}
{[%emt 00:03:42]} O-O {[%clk 01:26:02]} {[%emt 00:00:43]} 8. d4 {[%clk
01:06:43]} {[%emt 00:07:48]} c5 {[%clk 01:17:57]} {[%emt 00:08:34]} 9. hxg6
{[%clk 01:02:17]} {[%emt 00:04:55]} hxg6 {[%clk 01:17:57]} {[%emt 00:00:30]} 10.
Bh6 {[%clk 00:59:17]} {[%emt 00:03:30]} Bxh6 {[%clk 01:16:16]} {[%emt
00:02:11]} 11. Rxh6 {[%clk 00:57:31]} {[%emt 00:02:17]} cxd4 {[%clk 01:14:01]}
{[%emt 00:02:45]} 12. Qd2 {[%clk 00:53:09]} {[%emt 00:04:52]} e5 {[%clk
00:36:49]} {[%emt 00:37:42]} 13. Rh8+ {[%clk 00:43:32]} {[%emt 00:10:07]} Kxh8
{[%clk 00:37:13]} {[%emt 00:00:07]} 14. Qh6+ {[%clk 00:43:57]} {[%emt
00:00:04]} Kg8 {[%clk 00:37:38]} {[%emt 00:00:06]} 15. Ng5 {[%clk 00:44:23]}
{[%emt 00:00:04]} Qxg5 {[%clk 00:38:00]} {[%emt 00:00:08]} 16. Qxg5 {[%clk
00:44:47]} {[%emt 00:00:05]} Nc6 {[%clk 00:38:23]} {[%emt 00:00:07]} 17. e3
{[%clk 00:40:56]} {[%emt 00:04:20]} Bf5 {[%clk 00:28:23]} {[%emt 00:10:31]} 18.
Rc1 {[%clk 00:31:09]} {[%emt 00:10:18]} dxe3 {[%clk 00:23:55]} {[%emt
00:04:58]} 19. Bb5 {[%clk 00:27:01]} {[%emt 00:04:38]} exf2+ {[%clk 00:21:14]}
{[%emt 00:03:10]} 20. Kxf2 {[%clk 00:27:03]} {[%emt 00:00:27]} Kg7 {[%clk
00:21:39]} {[%emt 00:00:06]} 21. Rh1 {[%clk 00:23:34]} {[%emt 00:03:59]} Rh8
{[%clk 00:20:21]} {[%emt 00:01:48]} 22. Rxh8 {[%clk 00:23:39]} {[%emt
00:00:25]} Rxh8 {[%clk 00:20:46]} {[%emt 00:00:05]} 23. Bxc6 {[%clk 00:22:25]}
{[%emt 00:01:44]} bxc6 {[%clk 00:20:53]} {[%emt 00:00:23]} 24. Qe7 {[%clk
00:20:33]} {[%emt 00:02:21]} Be6 {[%clk 00:20:13]} {[%emt 00:01:11]} 25. Qxa7
{[%clk 00:14:02]} {[%emt 00:07:01]} Rd8 {[%clk 00:20:36]} {[%emt 00:00:07]} 26.
Ke1 {[%clk 00:13:00]} {[%emt 00:01:32]} Rd3 {[%clk 00:15:29]} {[%emt 00:05:37]}
27. Qa5 {[%clk 00:06:30]} {[%emt 00:07:01]} Bd5 {[%clk 00:08:12]} {[%emt
00:07:46]} 28. a4 {[%clk 00:04:51]} {[%emt 00:02:08]} Re3+ {[%clk 00:07:06]}
{[%emt 00:01:35]} 29. Kf2 {[%clk 00:04:44]} {[%emt 00:00:39]} Re4 {[%clk
00:07:27]} {[%emt 00:00:09]} 30. Qc7 {[%clk 00:03:29]} {[%emt 00:01:45]} Rxa4
{[%clk 00:06:09]} {[%emt 00:01:47]} 31. Qxe5+ {[%clk 00:03:53]} {[%emt
00:00:07]} Kh7 {[%clk 00:04:39]} {[%emt 00:01:59]} 32. Qh2+ {[%clk 00:04:16]}
{[%emt 00:00:07]} Kg8 {[%clk 00:04:44]} {[%emt 00:00:26]} 33. Qb8+ {[%clk
00:04:37]} {[%emt 00:00:08]} Kg7 {[%clk 00:05:09]} {[%emt 00:00:05]} 34. Qe5+
{[%clk 00:05:02]} {[%emt 00:00:05]} Kf8 {[%clk 00:02:48]} {[%emt 00:02:52]} 35.
Qh8+ {[%clk 00:04:30]} {[%emt 00:01:01]} Ke7 {[%clk 00:03:11]} {[%emt
00:00:08]} 36. Qe5+ {[%clk 00:04:54]} {[%emt 00:00:06]} Kd7 {[%clk 00:03:32]}
{[%emt 00:00:08]} 37. g3 {[%clk 00:05:06]} {[%emt 00:00:18]} Re4 {[%clk
00:03:13]} {[%emt 00:00:49]} 38. Qb8 {[%clk 00:05:05]} {[%emt 00:00:31]} g5
{[%clk 00:02:36]} {[%emt 00:01:08]} 39. Qa7+ {[%clk 00:04:01]} {[%emt
00:01:33]} Ke6 {[%clk 00:02:45]} {[%emt 00:00:21]} 40. Qb8 {[%clk 00:03:44]}
{[%emt 00:00:48]} g4 {[%clk 00:00:58]} {[%emt 00:02:17]} 41. Qc7 {[%clk
00:00:53]} {[%emt 00:03:21]} Kf5 {[%clk 00:22:48]} {[%emt 00:08:40]} 42. Qd7+
{[%clk 00:30:17]} {[%emt 00:01:06]} Kg6 {[%clk 00:22:49]} {[%emt 00:00:29]} 43.
Qd8 {[%clk 00:29:18]} {[%emt 00:01:28]} f6 {[%clk 00:21:12]} {[%emt 00:02:07]}
44. Qc8 {[%clk 00:28:55]} {[%emt 00:00:53]} Kg5 {[%clk 00:15:20]} {[%emt
00:06:23]} 45. Qc7 {[%clk 00:27:48]} {[%emt 00:01:37]} Kh6 {[%clk 00:08:18]}
{[%emt 00:07:32]} 46. Qd8 {[%clk 00:27:46]} {[%emt 00:00:31]} Kg7 {[%clk
00:07:17]} {[%emt 00:01:32]} 47. Qd7+ {[%clk 00:27:53]} {[%emt 00:00:22]} Kg6
{[%clk 00:07:28]} {[%emt 00:00:19]} 48. Qd8 {[%clk 00:26:16]} {[%emt 00:02:07]}
Re5 {[%clk 00:04:55]} {[%emt 00:03:03]} 49. Qb8 {[%clk 00:24:11]} {[%emt
00:02:35]} c5 {[%clk 00:02:35]} {[%emt 00:02:52]} 50. Qd6 {[%clk 00:20:59]}
{[%emt 00:03:41]} Bf3 {[%clk 00:01:27]} {[%emt 00:01:37]} 51. Qd3+ {[%clk
00:20:58]} {[%emt 00:00:31]} Kg7 {[%clk 00:01:15]} {[%emt 00:00:42]} 52. Qd7+
{[%clk 00:21:14]} {[%emt 00:00:14]} Kf8 {[%clk 00:01:32]} {[%emt 00:00:14]} 53.
Qd8+ {[%clk 00:21:25]} {[%emt 00:00:18]} Kf7 {[%clk 00:01:57]} {[%emt
00:00:05]} 54. Qd7+ {[%clk 00:21:48]} {[%emt 00:00:07]} Re7 {[%clk 00:02:21]}
{[%emt 00:00:07]} 55. Qc8 {[%clk 00:21:01]} {[%emt 00:01:17]} Re2+ {[%clk
00:02:45]} {[%emt 00:00:06]} 56. Kf1 {[%clk 00:21:26]} {[%emt 00:00:04]} Re5
{[%clk 00:03:03]} {[%emt 00:00:12]} 57. Qd7+ {[%clk 00:21:35]} {[%emt
00:00:21]} Kg6 {[%clk 00:03:29]} {[%emt 00:00:05]} 58. Qd3+ {[%clk 00:21:03]}
{[%emt 00:01:02]} Re4 {[%clk 00:03:52]} {[%emt 00:00:07]} 59. Qd8 {[%clk
00:20:45]} {[%emt 00:00:47]} Be2+ {[%clk 00:03:17]} {[%emt 00:01:06]} 60. Kf2
{[%clk 00:20:53]} {[%emt 00:00:21]} Bc4 {[%clk 00:00:53]} {[%emt 00:02:54]} 61.
Qc8 {[%clk 00:21:01]} {[%emt 00:00:23]} Re2+ {[%clk 00:01:13]} {[%emt
00:00:09]} 62. Kg1 {[%clk 00:21:20]} {[%emt 00:00:11]} Re1+ {[%clk 00:01:21]}
{[%emt 00:00:23]} 63. Kf2 {[%clk 00:21:44]} {[%emt 00:00:05]} Rf1+ {[%clk
00:01:23]} {[%emt 00:00:28]} 64. Kg2 {[%clk 00:21:34]} {[%emt 00:00:41]} Rf5
{[%clk 00:01:48]} {[%emt 00:00:05]} 65. Kg1 {[%clk 00:21:07]} {[%emt 00:00:57]}
Bf7 {[%clk 00:01:55]} {[%emt 00:00:23]} 66. Qd7 {[%clk 00:20:58]} {[%emt
00:00:39]} c4 {[%clk 00:01:41]} {[%emt 00:00:44]} 67. Qc8 {[%clk 00:20:58]}
{[%emt 00:00:29]} Rg5 {[%clk 00:00:39]} {[%emt 00:01:32]} 68. Kf2 {[%clk
00:21:06]} {[%emt 00:00:22]} Rf5+ {[%clk 00:00:48]} {[%emt 00:00:21]} 69. Kg1
{[%clk 00:21:23]} {[%emt 00:00:13]} Bd5 {[%clk 00:00:33]} {[%emt 00:00:46]} 70.
Qe8+ {[%clk 00:21:18]} {[%emt 00:00:33]} Kg7 {[%clk 00:00:32]} {[%emt
00:00:33]} 71. Qd7+ {[%clk 00:21:35]} {[%emt 00:00:12]} Kg6 {[%clk 00:01:00]}
{[%emt 00:00:02]} 72. Qe8+ {[%clk 00:21:58]} {[%emt 00:00:06]} Bf7 {[%clk
00:00:57]} {[%emt 00:00:34]} 73. Qc8 {[%clk 00:21:46]} {[%emt 00:00:41]} Kg5
{[%clk 00:00:43]} {[%emt 00:00:45]} 74. Qd7 {[%clk 00:21:28]} {[%emt 00:00:48]}
1/2-1/2

[Event "Deloitte NK 2021"]
[Site "Hoogeveen, Netherlands"]
[Date "2021.10.18"]
[Round "4.8"]
[White "Schoppen, Casper"]
[Black "Pijpers, Arthur"]
[Result "1/2-1/2"]
[TimeControl "90min/40moves + 30min + 30sec/move"]
[WhiteElo "2496"]
[BlackElo "2474"]

1. d4 {[%clk 01:30:53]} {[%emt 00:00:06]} Nf6 {[%clk 01:30:54]} {[%emt
00:00:06]} 2. c4 {[%clk 01:31:15]} {[%emt 00:00:08]} g6 {[%clk 01:31:20]}
{[%emt 00:00:04]} 3. f3 {[%clk 01:31:16]} {[%emt 00:00:29]} Bg7 {[%clk
01:31:40]} {[%emt 00:00:10]} 4. e4 {[%clk 01:31:39]} {[%emt 00:00:06]} d6
{[%clk 01:32:06]} {[%emt 00:00:06]} 5. Nc3 {[%clk 01:32:01]} {[%emt 00:00:08]}
O-O {[%clk 01:32:29]} {[%emt 00:00:06]} 6. Nge2 {[%clk 01:32:01]} {[%emt
00:00:30]} a6 {[%clk 01:32:00]} {[%emt 00:01:00]} 7. Be3 {[%clk 01:31:51]}
{[%emt 00:00:40]} b5 {[%clk 01:32:22]} {[%emt 00:00:08]} 8. h4 {[%clk
01:32:09]} {[%emt 00:00:11]} h5 {[%clk 01:32:46]} {[%emt 00:00:07]} 9. Qd2
{[%clk 01:32:15]} {[%emt 00:00:24]} c6 {[%clk 01:32:52]} {[%emt 00:00:23]} 10.
Rd1 {[%clk 01:29:02]} {[%emt 00:03:43]} Qc7 {[%clk 01:14:57]} {[%emt 00:18:26]}
11. Nc1 {[%clk 01:15:21]} {[%emt 00:14:11]} Nbd7 {[%clk 01:06:14]} {[%emt
00:09:13]} 12. Be2 {[%clk 01:10:49]} {[%emt 00:05:01]} bxc4 {[%clk 00:56:04]}
{[%emt 00:10:41]} 13. Bxc4 {[%clk 01:06:02]} {[%emt 00:05:17]} d5 {[%clk
00:54:00]} {[%emt 00:02:34]} 14. exd5 {[%clk 01:00:41]} {[%emt 00:05:51]} Nb6
{[%clk 00:47:23]} {[%emt 00:07:07]} 15. Bb3 {[%clk 01:00:04]} {[%emt 00:01:07]}
Nfxd5 {[%clk 00:45:02]} {[%emt 00:02:51]} 16. Nxd5 {[%clk 00:57:57]} {[%emt
00:02:36]} cxd5 {[%clk 00:44:01]} {[%emt 00:01:31]} 17. Bf4 {[%clk 00:54:03]}
{[%emt 00:04:25]} Qc6 {[%clk 00:42:42]} {[%emt 00:01:50]} 18. Bh6 {[%clk
00:28:47]} {[%emt 00:25:45]} Bxh6 {[%clk 00:23:53]} {[%emt 00:19:19]} 19. Qxh6
{[%clk 00:29:06]} {[%emt 00:00:11]} Bf5 {[%clk 00:24:00]} {[%emt 00:00:22]} 20.
Ne2 {[%clk 00:20:33]} {[%emt 00:09:04]} a5 {[%clk 00:23:47]} {[%emt 00:00:44]}
21. g4 {[%clk 00:07:50]} {[%emt 00:13:12]} hxg4 {[%clk 00:22:16]} {[%emt
00:02:01]} 22. h5 {[%clk 00:08:07]} {[%emt 00:00:13]} Qf6 {[%clk 00:22:28]}
{[%emt 00:00:18]} 23. fxg4 {[%clk 00:05:07]} {[%emt 00:03:30]} Be4 {[%clk
00:22:26]} {[%emt 00:00:32]} 24. hxg6 {[%clk 00:05:18]} {[%emt 00:00:19]} Qg7
{[%clk 00:22:07]} {[%emt 00:00:49]} 25. gxf7+ {[%clk 00:03:48]} {[%emt
00:02:00]} Rxf7 {[%clk 00:22:35]} {[%emt 00:00:02]} 26. Rh5 {[%clk 00:03:42]}
{[%emt 00:00:36]} Rf6 {[%clk 00:11:21]} {[%emt 00:11:45]} 27. Qxg7+ {[%clk
00:03:57]} {[%emt 00:00:14]} Kxg7 {[%clk 00:11:50]} {[%emt 00:00:01]} 28. Nc3
{[%clk 00:02:57]} {[%emt 00:01:30]} Bf3 {[%clk 00:04:15]} {[%emt 00:08:05]} 29.
Rd3 {[%clk 00:02:48]} {[%emt 00:00:38]} e6 {[%clk 00:03:32]} {[%emt 00:01:14]}
30. Bd1 {[%clk 00:01:14]} {[%emt 00:02:03]} Raf8 {[%clk 00:02:56]} {[%emt
00:01:06]} 31. Rg5+ {[%clk 00:01:04]} {[%emt 00:00:41]} Kh8 {[%clk 00:01:01]}
{[%emt 00:02:26]} 32. Rd2 {[%clk 00:01:03]} {[%emt 00:00:30]} Rh6 {[%clk
00:01:19]} {[%emt 00:00:12]} 33. Rh5 {[%clk 00:00:40]} {[%emt 00:00:53]} Rxh5
{[%clk 00:01:09]} {[%emt 00:00:41]} 34. gxh5 {[%clk 00:01:09]} {[%emt
00:00:01]} Bxd1 {[%clk 00:01:05]} {[%emt 00:00:33]} 35. Kxd1 {[%clk 00:01:19]}
{[%emt 00:00:20]} Rf4 {[%clk 00:00:46]} {[%emt 00:00:49]} 36. Kc2 {[%clk
00:01:05]} {[%emt 00:00:44]} Kg7 {[%clk 00:00:42]} {[%emt 00:00:34]} 37. Rg2+
{[%clk 00:00:57]} {[%emt 00:00:38]} Kf7 {[%clk 00:00:39]} {[%emt 00:00:33]} 38.
Ne2 {[%clk 00:00:53]} {[%emt 00:00:34]} Rh4 {[%clk 00:00:55]} {[%emt 00:00:15]}
39. Rf2+ {[%clk 00:00:52]} {[%emt 00:00:30]} Ke7 {[%clk 00:00:48]} {[%emt
00:00:37]} 40. Nf4 {[%clk 00:00:58]} {[%emt 00:00:24]} Kd6 {[%clk 00:00:55]}
{[%emt 00:00:23]} 41. b3 {[%clk 00:14:39]} {[%emt 00:16:50]} Nc8 {[%clk
00:25:07]} {[%emt 00:06:17]} 42. a3 {[%clk 00:10:54]} {[%emt 00:04:15]} Ne7
{[%clk 00:24:12]} {[%emt 00:01:25]} 43. b4 {[%clk 00:05:29]} {[%emt 00:05:55]}
axb4 {[%clk 00:24:22]} {[%emt 00:00:21]} 44. axb4 {[%clk 00:05:54]} {[%emt
00:00:05]} Nc6 {[%clk 00:24:18]} {[%emt 00:00:33]} 45. Kc3 {[%clk 00:05:54]}
{[%emt 00:00:29]} Nxd4 {[%clk 00:24:36]} {[%emt 00:00:13]} 46. Kxd4 {[%clk
00:06:09]} {[%emt 00:00:15]} e5+ {[%clk 00:25:03]} {[%emt 00:00:04]} 47. Ke3
{[%clk 00:06:30]} {[%emt 00:00:08]} exf4+ {[%clk 00:25:27]} {[%emt 00:00:06]}
48. Rxf4 {[%clk 00:06:55]} {[%emt 00:00:05]} Rxh5 {[%clk 00:25:53]} {[%emt
00:00:04]} 1/2-1/2